[Event "Late-Titled-Tuesday-Blitz-January-30-2024"]
[Site "Chess.com"]
[Date "2024.01.30"]
[Round "8"]
[White "BebeBonito2022"]
[Black "AndreyNeves"]
[Result "1-0"]
[WhiteElo "2334"]
[BlackElo "2086"]
[TimeControl "180+1"]
[EndTime "15:26:51 PST"]
[Termination "BebeBonito2022 won by resignation"]

1. d4 {[%clk 0:03:00.9]} 1... d5 {[%clk 0:02:54.7]} 2. c4 {[%clk 0:03:01]} 2...
e6 {[%clk 0:02:53.3]} 3. Nc3 {[%clk 0:03:01.2]} 3... Nf6 {[%clk 0:02:52.1]} 4.
cxd5 {[%clk 0:03:01.5]} 4... exd5 {[%clk 0:02:51.5]} 5. Bg5 {[%clk 0:03:01.7]}
5... c6 {[%clk 0:02:50.5]} 6. e3 {[%clk 0:03:02.2]} 6... Be7 {[%clk 0:02:50.9]}
7. Bd3 {[%clk 0:03:02.4]} 7... O-O {[%clk 0:02:49.4]} 8. Nge2 {[%clk 0:03:02.6]}
8... h6 {[%clk 0:02:47.4]} 9. Bh4 {[%clk 0:03:02.6]} 9... b5 {[%clk 0:02:46.5]}
10. O-O {[%clk 0:03:00.4]} 10... a5 {[%clk 0:02:45.5]} 11. f3 {[%clk 0:02:57.7]}
11... Re8 {[%clk 0:02:39.6]} 12. Bf2 {[%clk 0:02:49.2]} 12... b4 {[%clk
0:02:39.3]} 13. Na4 {[%clk 0:02:49]} 13... Ba6 {[%clk 0:02:39.3]} 14. Rc1 {[%clk
0:02:49.1]} 14... Bd6 {[%clk 0:02:26.9]} 15. h3 {[%clk 0:02:35.7]} 15... Ra7
{[%clk 0:02:19.5]} 16. Nc5 {[%clk 0:02:32.8]} 16... Bxc5 {[%clk 0:02:14.3]} 17.
Rxc5 {[%clk 0:02:28.6]} 17... Re6 {[%clk 0:02:04.9]} 18. Nf4 {[%clk 0:02:19.4]}
18... Rd6 {[%clk 0:01:55.9]} 19. Qc2 {[%clk 0:02:16.2]} 19... Bxd3 {[%clk
0:01:41]} 20. Nxd3 {[%clk 0:02:11.1]} 20... Nfd7 {[%clk 0:01:40.1]} 21. Bg3
{[%clk 0:01:57.3]} 21... Rg6 {[%clk 0:01:33.8]} 22. Bxb8 {[%clk 0:01:55.5]}
22... Qxb8 {[%clk 0:01:30.1]} 23. Rxc6 {[%clk 0:01:52]} 23... Rxc6 {[%clk
0:01:14.8]} 24. Qxc6 {[%clk 0:01:51.6]} 24... Nf6 {[%clk 0:01:11.9]} 25. Rc1
{[%clk 0:01:49.1]} 25... Qg3 {[%clk 0:01:10.7]} 26. Nf4 {[%clk 0:01:18.1]} 26...
Qg5 {[%clk 0:01:00.6]} 27. Qc8+ {[%clk 0:01:05.3]} 27... Kh7 {[%clk 0:00:59.4]}
28. Rc7 {[%clk 0:01:04.2]} 28... Rxc7 {[%clk 0:00:45.3]} 29. Qxc7 {[%clk
0:01:04.7]} 29... Qf5 {[%clk 0:00:45.7]} 30. Qxf7 {[%clk 0:00:57]} 30... Qb1+
{[%clk 0:00:31.4]} 31. Kh2 {[%clk 0:00:56.9]} 31... Qxa2 {[%clk 0:00:28.5]} 32.
Qg6+ {[%clk 0:00:54.1]} 32... Kg8 {[%clk 0:00:24.1]} 33. Ne6 {[%clk 0:00:52.7]}
33... Nh5 {[%clk 0:00:19.5]} 34. Qxh5 {[%clk 0:00:48.5]} 34... Qxb2 {[%clk
0:00:19]} 35. Qg6 {[%clk 0:00:44.2]} 1-0

[Event "Late-Titled-Tuesday-Blitz-January-30-2024"]
[Site "Chess.com"]
[Date "2024.01.30"]
[Round "8"]
[White "emeli_chess"]
[Black "maurovargas01"]
[Result "1-0"]
[WhiteElo "2474"]
[BlackElo "1885"]
[TimeControl "180+1"]
[EndTime "15:26:55 PST"]
[Termination "emeli_chess won on time"]

1. d4 {[%clk 0:03:00.9]} 1... d5 {[%clk 0:02:58.9]} 2. c4 {[%clk 0:03:01]} 2...
c6 {[%clk 0:02:59.1]} 3. Nc3 {[%clk 0:03:01]} 3... e6 {[%clk 0:02:59.3]} 4. e3
{[%clk 0:03:00]} 4... Nf6 {[%clk 0:02:58.8]} 5. Nf3 {[%clk 0:02:59.8]} 5... Nbd7
{[%clk 0:02:59.1]} 6. Bd3 {[%clk 0:02:59.8]} 6... dxc4 {[%clk 0:02:59.3]} 7.
Bxc4 {[%clk 0:02:59.9]} 7... b5 {[%clk 0:02:59.7]} 8. Bd3 {[%clk 0:03:00.5]}
8... Bb7 {[%clk 0:02:59.9]} 9. O-O {[%clk 0:02:59.7]} 9... Bd6 {[%clk
0:02:59.1]} 10. e4 {[%clk 0:02:59.2]} 10... e5 {[%clk 0:02:57.1]} 11. Bg5 {[%clk
0:02:58.7]} 11... O-O {[%clk 0:02:56.7]} 12. d5 {[%clk 0:02:56.5]} 12... a6
{[%clk 0:02:54.2]} 13. a3 {[%clk 0:02:39.5]} 13... cxd5 {[%clk 0:02:54]} 14.
Nxd5 {[%clk 0:02:38]} 14... h6 {[%clk 0:02:51.4]} 15. Bh4 {[%clk 0:01:43.1]}
15... g5 {[%clk 0:02:49.5]} 16. Bg3 {[%clk 0:01:43.3]} 16... Bxd5 {[%clk
0:02:49.4]} 17. exd5 {[%clk 0:01:42.4]} 17... Re8 {[%clk 0:02:06]} 18. Re1
{[%clk 0:01:42.2]} 18... Qb6 {[%clk 0:02:02.7]} 19. Bf5 {[%clk 0:01:33.4]} 19...
e4 {[%clk 0:01:52]} 20. Nd4 {[%clk 0:01:23.4]} 20... Bc5 {[%clk 0:01:36.6]} 21.
Nc6 {[%clk 0:01:21.7]} 21... Nb8 {[%clk 0:00:53.6]} 22. b4 {[%clk 0:01:14.1]}
22... Bf8 {[%clk 0:00:51.7]} 23. Nxb8 {[%clk 0:01:12.6]} 23... Raxb8 {[%clk
0:00:49.6]} 24. Bxb8 {[%clk 0:01:12.6]} 24... Qxb8 {[%clk 0:00:43.5]} 25. Qd4
{[%clk 0:01:11.1]} 25... Bg7 {[%clk 0:00:41.7]} 26. Qc5 {[%clk 0:01:11.4]} 26...
Qf4 {[%clk 0:00:32.2]} 27. d6 {[%clk 0:00:59.7]} 27... Re5 {[%clk 0:00:28]} 28.
Qc8+ {[%clk 0:00:54.2]} 28... Bf8 {[%clk 0:00:19.5]} 29. d7 {[%clk 0:00:49.6]}
29... Rxf5 {[%clk 0:00:13]} 30. d8=Q {[%clk 0:00:49.4]} 1-0

[Event "Late-Titled-Tuesday-Blitz-January-30-2024"]
[Site "Chess.com"]
[Date "2024.01.30"]
[Round "8"]
[White "masnyszachistaaa"]
[Black "MikaelyanArman"]
[Result "0-1"]
[WhiteElo "2557"]
[BlackElo "2845"]
[TimeControl "180+1"]
[EndTime "15:26:58 PST"]
[Termination "MikaelyanArman won by checkmate"]

1. e4 {[%clk 0:03:00.9]} 1... c5 {[%clk 0:02:53.7]} 2. Ne2 {[%clk 0:02:55.5]}
2... Nc6 {[%clk 0:02:52.6]} 3. Nbc3 {[%clk 0:02:49.3]} 3... g6 {[%clk
0:02:52.3]} 4. d4 {[%clk 0:02:48.9]} 4... cxd4 {[%clk 0:02:53.2]} 5. Nxd4 {[%clk
0:02:49.4]} 5... Bg7 {[%clk 0:02:53.4]} 6. Be3 {[%clk 0:02:49.7]} 6... Nf6
{[%clk 0:02:53.8]} 7. Be2 {[%clk 0:02:42.9]} 7... O-O {[%clk 0:02:53.9]} 8. Nb3
{[%clk 0:02:34.7]} 8... d6 {[%clk 0:02:51.8]} 9. O-O {[%clk 0:02:34.1]} 9... b6
{[%clk 0:02:52.5]} 10. f3 {[%clk 0:02:30.6]} 10... Bb7 {[%clk 0:02:51.5]} 11.
Qd2 {[%clk 0:02:15.9]} 11... Rc8 {[%clk 0:02:49.6]} 12. Rac1 {[%clk 0:02:12.6]}
12... Ne5 {[%clk 0:02:49.6]} 13. Rfd1 {[%clk 0:02:08.6]} 13... Qc7 {[%clk
0:02:47.4]} 14. Nb5 {[%clk 0:02:05]} 14... Qb8 {[%clk 0:02:47.2]} 15. c4 {[%clk
0:02:04.1]} 15... Nfd7 {[%clk 0:02:43.5]} 16. f4 {[%clk 0:01:58.1]} 16... Nc6
{[%clk 0:02:43.5]} 17. e5 {[%clk 0:01:56.4]} 17... a6 {[%clk 0:02:38.7]} 18. Nc3
{[%clk 0:01:15.7]} 18... Nc5 {[%clk 0:02:35.5]} 19. exd6 {[%clk 0:01:12]} 19...
exd6 {[%clk 0:02:34.4]} 20. Qxd6 {[%clk 0:01:11.9]} 20... Nxb3 {[%clk
0:02:28.4]} 21. Qxb8 {[%clk 0:01:05.5]} 21... Rxb8 {[%clk 0:02:29.3]} 22. axb3
{[%clk 0:01:05.5]} 22... Rfe8 {[%clk 0:02:29.9]} 23. Kf2 {[%clk 0:01:03]} 23...
Na5 {[%clk 0:02:27.9]} 24. b4 {[%clk 0:00:58.5]} 24... Nb3 {[%clk 0:02:28.4]}
25. Rb1 {[%clk 0:00:56.4]} 25... Bxg2 {[%clk 0:02:25.8]} 26. Nd5 {[%clk
0:00:50]} 26... Be4 {[%clk 0:02:22.2]} 27. Bd3 {[%clk 0:00:45.7]} 27... Bxd5
{[%clk 0:02:11.5]} 28. cxd5 {[%clk 0:00:45.7]} 28... b5 {[%clk 0:02:12.4]} 29.
Bc2 {[%clk 0:00:45.7]} 29... Rxe3 {[%clk 0:02:04.1]} 30. Kxe3 {[%clk 0:00:46.3]}
30... Re8+ {[%clk 0:02:04.8]} 31. Kf2 {[%clk 0:00:40.3]} 31... Nd4 {[%clk
0:01:59.9]} 32. Bd3 {[%clk 0:00:38.5]} 32... Bf8 {[%clk 0:01:57.4]} 33. Ra1
{[%clk 0:00:26.9]} 33... Bxb4 {[%clk 0:01:57.6]} 34. Rxa6 {[%clk 0:00:26.8]}
34... Bc5 {[%clk 0:01:58.2]} 35. Kf1 {[%clk 0:00:24.5]} 35... Nf3 {[%clk
0:01:43.9]} 36. d6 {[%clk 0:00:11.3]} 36... Nxh2+ {[%clk 0:01:18.1]} 37. Kg2
{[%clk 0:00:11.3]} 37... Ng4 {[%clk 0:01:18.8]} 38. Rd2 {[%clk 0:00:05.9]} 38...
Ne3+ {[%clk 0:00:55.7]} 39. Kf3 {[%clk 0:00:05.5]} 39... Nd5 {[%clk 0:00:56.2]}
40. Bxb5 {[%clk 0:00:04.5]} 40... Re3+ {[%clk 0:00:56.5]} 41. Kg2 {[%clk
0:00:03.7]} 41... Nxf4+ {[%clk 0:00:57.1]} 42. Kh2 {[%clk 0:00:04]} 42... Rh3#
{[%clk 0:00:56.8]} 0-1

[Event "Late-Titled-Tuesday-Blitz-January-30-2024"]
[Site "Chess.com"]
[Date "2024.01.30"]
[Round "8"]
[White "Zq1"]
[Black "RCone"]
[Result "0-1"]
[WhiteElo "2485"]
[BlackElo "2343"]
[TimeControl "180+1"]
[EndTime "15:26:59 PST"]
[Termination "RCone won by resignation"]

1. d4 {[%clk 0:03:00.9]} 1... d6 {[%clk 0:02:57.5]} 2. Nf3 {[%clk 0:02:59.7]}
2... Nf6 {[%clk 0:02:58.1]} 3. c4 {[%clk 0:02:59.3]} 3... g6 {[%clk 0:02:57.4]}
4. Nc3 {[%clk 0:02:59.1]} 4... Bg7 {[%clk 0:02:58.3]} 5. e4 {[%clk 0:02:58.9]}
5... O-O {[%clk 0:02:59]} 6. Be2 {[%clk 0:02:59]} 6... Na6 {[%clk 0:02:59.6]} 7.
O-O {[%clk 0:02:58.7]} 7... e5 {[%clk 0:03:00]} 8. Be3 {[%clk 0:02:58.1]} 8...
h6 {[%clk 0:02:59.8]} 9. d5 {[%clk 0:02:54.6]} 9... Nc5 {[%clk 0:02:59.2]} 10.
Nd2 {[%clk 0:02:53.6]} 10... a5 {[%clk 0:02:58.8]} 11. a3 {[%clk 0:02:51.4]}
11... b6 {[%clk 0:02:36.7]} 12. b4 {[%clk 0:02:50.1]} 12... Nb7 {[%clk
0:02:37.4]} 13. Nb5 {[%clk 0:02:34.7]} 13... Bd7 {[%clk 0:02:27.9]} 14. Rc1
{[%clk 0:02:33.3]} 14... axb4 {[%clk 0:02:27.3]} 15. axb4 {[%clk 0:02:32.6]}
15... Ne8 {[%clk 0:02:09.4]} 16. Ra1 {[%clk 0:02:29.5]} 16... Rxa1 {[%clk
0:02:08]} 17. Qxa1 {[%clk 0:02:28.6]} 17... f5 {[%clk 0:02:08.6]} 18. f3 {[%clk
0:02:28.3]} 18... Nf6 {[%clk 0:01:57]} 19. Qa6 {[%clk 0:02:22.3]} 19... Bc8
{[%clk 0:01:56.6]} 20. Na7 {[%clk 0:02:16.8]} 20... Nh5 {[%clk 0:01:43.2]} 21.
Nxc8 {[%clk 0:02:10.9]} 21... Qxc8 {[%clk 0:01:44.1]} 22. c5 {[%clk 0:01:53.7]}
22... bxc5 {[%clk 0:01:40.3]} 23. bxc5 {[%clk 0:01:53.2]} 23... Nxc5 {[%clk
0:01:24.6]} 24. Qxc8 {[%clk 0:01:49.9]} 24... Rxc8 {[%clk 0:01:25.5]} 25. Bxc5
{[%clk 0:01:46.4]} 25... dxc5 {[%clk 0:01:26.4]} 26. g3 {[%clk 0:01:39.1]} 26...
Bf8 {[%clk 0:01:15.5]} 27. Nc4 {[%clk 0:01:30]} 27... Bd6 {[%clk 0:01:15.7]} 28.
f4 {[%clk 0:01:28.5]} 28... Re8 {[%clk 0:01:10.4]} 29. fxe5 {[%clk 0:00:55]}
29... Bxe5 {[%clk 0:01:08.9]} 30. Bxh5 {[%clk 0:00:52.5]} 30... gxh5 {[%clk
0:00:57.1]} 31. exf5 {[%clk 0:00:47.7]} 31... Bd4+ {[%clk 0:00:56.8]} 32. Kg2
{[%clk 0:00:47.9]} 32... Re2+ {[%clk 0:00:54.8]} 33. Kh3 {[%clk 0:00:47.9]}
33... Rc2 {[%clk 0:00:55]} 34. Na5 {[%clk 0:00:45.9]} 34... Bf6 {[%clk
0:00:39.9]} 35. Rf4 {[%clk 0:00:41.5]} 35... Rd2 {[%clk 0:00:36.2]} 36. g4
{[%clk 0:00:32.7]} 36... Be5 {[%clk 0:00:24.8]} 37. Nc4 {[%clk 0:00:31.6]} 37...
Bxf4 {[%clk 0:00:23.8]} 38. Nxd2 {[%clk 0:00:30.8]} 38... Bxd2 {[%clk
0:00:24.7]} 0-1

[Event "Late-Titled-Tuesday-Blitz-January-30-2024"]
[Site "Chess.com"]
[Date "2024.01.30"]
[Round "8"]
[White "Sandpacer"]
[Black "brm72"]
[Result "0-1"]
[WhiteElo "2499"]
[BlackElo "2698"]
[TimeControl "180+1"]
[EndTime "15:27:11 PST"]
[Termination "brm72 won by resignation"]

1. e4 {[%clk 0:02:53.6]} 1... c6 {[%clk 0:02:58.3]} 2. d4 {[%clk 0:02:53.5]}
2... d5 {[%clk 0:02:58.6]} 3. Nd2 {[%clk 0:02:53.7]} 3... dxe4 {[%clk
0:02:58.8]} 4. Nxe4 {[%clk 0:02:54.6]} 4... Nf6 {[%clk 0:02:59.4]} 5. Nxf6+
{[%clk 0:02:54.9]} 5... exf6 {[%clk 0:03:00.3]} 6. Nf3 {[%clk 0:02:55.5]} 6...
Bd6 {[%clk 0:03:00]} 7. Bd3 {[%clk 0:02:56.1]} 7... O-O {[%clk 0:02:59.8]} 8.
O-O {[%clk 0:02:56.8]} 8... Bg4 {[%clk 0:03:00.4]} 9. h3 {[%clk 0:02:57.4]} 9...
Bh5 {[%clk 0:03:00.9]} 10. c4 {[%clk 0:02:55.6]} 10... Re8 {[%clk 0:02:58.9]}
11. b3 {[%clk 0:02:52.2]} 11... Nd7 {[%clk 0:02:58.7]} 12. Bb2 {[%clk 0:02:48]}
12... Nf8 {[%clk 0:02:58.4]} 13. Bc2 {[%clk 0:02:42.8]} 13... Bc7 {[%clk
0:02:58]} 14. Qd3 {[%clk 0:02:42.5]} 14... Qd6 {[%clk 0:02:54.8]} 15. g3 {[%clk
0:02:38]} 15... f5 {[%clk 0:02:48.3]} 16. Ne5 {[%clk 0:02:32]} 16... f6 {[%clk
0:02:37.1]} 17. Qxf5 {[%clk 0:01:59.3]} 17... g6 {[%clk 0:02:19.6]} 18. c5
{[%clk 0:01:55.3]} 18... Qd5 {[%clk 0:01:55]} 19. Qxf6 {[%clk 0:01:54.1]} 19...
Bxe5 {[%clk 0:01:33.1]} 20. dxe5 {[%clk 0:01:51.1]} 20... Ne6 {[%clk 0:01:27.1]}
21. g4 {[%clk 0:01:40.8]} 21... Rf8 {[%clk 0:01:24.7]} 22. Qh4 {[%clk
0:01:40.5]} 22... Nf4 {[%clk 0:01:19.6]} 23. f3 {[%clk 0:01:27.4]} 23... Qxc5+
{[%clk 0:00:53.9]} 24. Rf2 {[%clk 0:01:24.5]} 24... g5 {[%clk 0:00:54.2]} 25.
Qxg5+ {[%clk 0:01:19.4]} 25... Bg6 {[%clk 0:00:54.5]} 26. Qh6 {[%clk 0:00:54.9]}
26... Ne2+ {[%clk 0:00:20.5]} 27. Kg2 {[%clk 0:00:46.9]} 27... Qxc2 {[%clk
0:00:20]} 28. Re1 {[%clk 0:00:28.5]} 28... Nf4+ {[%clk 0:00:12.4]} 29. Kg3
{[%clk 0:00:26.4]} 29... Qc5 {[%clk 0:00:10.3]} 30. e6 {[%clk 0:00:25.1]} 30...
Qe7 {[%clk 0:00:10.3]} 31. Rd2 {[%clk 0:00:23.2]} 31... Rad8 {[%clk 0:00:09.9]}
32. Rd7 {[%clk 0:00:22.3]} 32... Rxd7 {[%clk 0:00:08.2]} 33. exd7 {[%clk
0:00:22]} 33... Qxe1+ {[%clk 0:00:09]} 0-1

[Event "Late-Titled-Tuesday-Blitz-January-30-2024"]
[Site "Chess.com"]
[Date "2024.01.30"]
[Round "8"]
[White "nikitadovbnya2008"]
[Black "snowlord"]
[Result "0-1"]
[WhiteElo "2209"]
[BlackElo "2853"]
[TimeControl "180+1"]
[EndTime "15:27:11 PST"]
[Termination "snowlord won by checkmate"]

1. d4 {[%clk 0:03:00.9]} 1... Nf6 {[%clk 0:02:42.8]} 2. c4 {[%clk 0:03:00.7]}
2... Nc6 {[%clk 0:02:42.3]} 3. d5 {[%clk 0:02:59]} 3... Ne5 {[%clk 0:02:42.2]}
4. Nc3 {[%clk 0:02:58.9]} 4... e6 {[%clk 0:02:42.1]} 5. e4 {[%clk 0:02:58.5]}
5... Bb4 {[%clk 0:02:39.7]} 6. Bd3 {[%clk 0:02:54.6]} 6... c6 {[%clk 0:02:29.4]}
7. Bf4 {[%clk 0:02:45.8]} 7... Ng6 {[%clk 0:02:24.1]} 8. Bg5 {[%clk 0:02:42.9]}
8... h6 {[%clk 0:02:22.7]} 9. Bd2 {[%clk 0:02:37.6]} 9... exd5 {[%clk
0:02:22.8]} 10. exd5 {[%clk 0:02:36.6]} 10... Qe7+ {[%clk 0:02:21.3]} 11. Qe2
{[%clk 0:02:34.3]} 11... Ne5 {[%clk 0:02:21.5]} 12. O-O-O {[%clk 0:02:29.7]}
12... O-O {[%clk 0:02:16.6]} 13. f4 {[%clk 0:02:27]} 13... Nxd3+ {[%clk
0:02:10]} 14. Qxd3 {[%clk 0:02:27.9]} 14... cxd5 {[%clk 0:02:10.6]} 15. Nxd5
{[%clk 0:02:15.5]} 15... Nxd5 {[%clk 0:02:10.3]} 16. Qxd5 {[%clk 0:02:13.6]}
16... Bxd2+ {[%clk 0:02:10.6]} 17. Qxd2 {[%clk 0:02:12.2]} 17... d5 {[%clk
0:02:11.4]} 18. Nf3 {[%clk 0:01:59.2]} 18... dxc4 {[%clk 0:01:46.3]} 19. Rhe1
{[%clk 0:01:58.8]} 19... Qf6 {[%clk 0:01:36.1]} 20. Qd4 {[%clk 0:01:50.4]} 20...
Qa6 {[%clk 0:01:30.8]} 21. a3 {[%clk 0:01:40.4]} 21... c3 {[%clk 0:01:29]} 22.
Qxc3 {[%clk 0:01:29.9]} 22... Bf5 {[%clk 0:01:28.6]} 23. Kd2 {[%clk 0:01:28.6]}
23... Rac8 {[%clk 0:01:19.1]} 24. Qb3 {[%clk 0:01:25.5]} 24... Bc2 {[%clk
0:00:38.6]} 25. Qxc2 {[%clk 0:01:18.8]} 25... Rxc2+ {[%clk 0:00:39.5]} 26. Kxc2
{[%clk 0:01:19.7]} 26... Qc4+ {[%clk 0:00:40.1]} 27. Kb1 {[%clk 0:01:17.4]}
27... Qxf4 {[%clk 0:00:41]} 28. Rd2 {[%clk 0:01:13.3]} 28... g6 {[%clk
0:00:38.6]} 29. h3 {[%clk 0:01:09.7]} 29... Rc8 {[%clk 0:00:38.5]} 30. Red1
{[%clk 0:01:07.5]} 30... Kg7 {[%clk 0:00:38.2]} 31. Rd4 {[%clk 0:01:03.4]} 31...
Qf5+ {[%clk 0:00:37]} 32. Ka1 {[%clk 0:01:02]} 32... Rc2 {[%clk 0:00:37.5]} 33.
R1d2 {[%clk 0:00:58.1]} 33... Rc1+ {[%clk 0:00:37.3]} 34. Ka2 {[%clk 0:00:57.2]}
34... Qe6+ {[%clk 0:00:38.2]} 35. b3 {[%clk 0:00:54]} 35... Rc3 {[%clk
0:00:38.4]} 36. Rb2 {[%clk 0:00:50.4]} 36... b5 {[%clk 0:00:35.8]} 37. a4 {[%clk
0:00:47.7]} 37... a6 {[%clk 0:00:33.6]} 38. axb5 {[%clk 0:00:43.8]} 38... axb5
{[%clk 0:00:34.5]} 39. h4 {[%clk 0:00:35.9]} 39... Rc1 {[%clk 0:00:32.3]} 40.
Ka3 {[%clk 0:00:22.1]} 40... Qe7+ {[%clk 0:00:32.2]} 41. b4 {[%clk 0:00:20.7]}
41... Qa7+ {[%clk 0:00:32.2]} 42. Kb3 {[%clk 0:00:19.4]} 42... Qa4# {[%clk
0:00:33.1]} 0-1

[Event "Late-Titled-Tuesday-Blitz-January-30-2024"]
[Site "Chess.com"]
[Date "2024.01.30"]
[Round "8"]
[White "crazy_but_lazy"]
[Black "krzyzan94"]
[Result "0-1"]
[WhiteElo "2629"]
[BlackElo "2768"]
[TimeControl "180+1"]
[EndTime "15:27:14 PST"]
[Termination "krzyzan94 won by resignation"]

1. d4 {[%clk 0:02:45]} 1... Nf6 {[%clk 0:02:58.9]} 2. Nf3 {[%clk 0:02:44.4]}
2... e6 {[%clk 0:02:59.5]} 3. Bf4 {[%clk 0:02:44.3]} 3... c5 {[%clk 0:02:56.8]}
4. e3 {[%clk 0:02:44]} 4... b6 {[%clk 0:02:57.3]} 5. Nc3 {[%clk 0:02:36.1]} 5...
Bb7 {[%clk 0:02:47.8]} 6. Nb5 {[%clk 0:02:35.9]} 6... Na6 {[%clk 0:02:32.6]} 7.
Nd6+ {[%clk 0:02:21.2]} 7... Bxd6 {[%clk 0:02:32.8]} 8. Bxd6 {[%clk 0:02:22.1]}
8... Ne4 {[%clk 0:02:30.6]} 9. Bf4 {[%clk 0:02:20]} 9... O-O {[%clk 0:02:29.4]}
10. Be2 {[%clk 0:02:09.2]} 10... d6 {[%clk 0:02:20.9]} 11. O-O {[%clk
0:02:07.6]} 11... Qe7 {[%clk 0:02:18.4]} 12. c3 {[%clk 0:02:07]} 12... Nc7
{[%clk 0:02:16.5]} 13. Nd2 {[%clk 0:01:59.6]} 13... Rad8 {[%clk 0:02:11.4]} 14.
Nxe4 {[%clk 0:01:54.7]} 14... Bxe4 {[%clk 0:02:12.3]} 15. Bg3 {[%clk 0:01:49.1]}
15... f5 {[%clk 0:02:10.2]} 16. Qa4 {[%clk 0:01:48.9]} 16... a6 {[%clk
0:02:03.1]} 17. Rad1 {[%clk 0:01:44.1]} 17... g5 {[%clk 0:01:49.4]} 18. f3
{[%clk 0:01:35.9]} 18... Bb7 {[%clk 0:01:45.7]} 19. dxc5 {[%clk 0:01:29.1]}
19... bxc5 {[%clk 0:01:41.2]} 20. Rd2 {[%clk 0:01:18.8]} 20... Nd5 {[%clk
0:01:34.6]} 21. Bf2 {[%clk 0:01:15]} 21... f4 {[%clk 0:01:13.9]} 22. e4 {[%clk
0:00:52.7]} 22... Ne3 {[%clk 0:01:06.5]} 23. Bxe3 {[%clk 0:00:53]} 23... fxe3
{[%clk 0:01:07.4]} 24. Rd3 {[%clk 0:00:53.6]} 24... d5 {[%clk 0:01:08.1]} 25.
Rxe3 {[%clk 0:00:46.1]} 25... c4 {[%clk 0:01:01.2]} 26. Qa5 {[%clk 0:00:35.8]}
26... Qg7 {[%clk 0:00:51.7]} 27. exd5 {[%clk 0:00:27.2]} 27... exd5 {[%clk
0:00:50.8]} 28. Qb6 {[%clk 0:00:26]} 28... Kh8 {[%clk 0:00:50.2]} 29. Re1 {[%clk
0:00:24.8]} 29... d4 {[%clk 0:00:43.3]} 30. cxd4 {[%clk 0:00:23.4]} 30... Rxd4
{[%clk 0:00:40.7]} 31. Bf1 {[%clk 0:00:21.7]} 31... g4 {[%clk 0:00:39.1]} 32.
Re7 {[%clk 0:00:19.7]} 32... gxf3 {[%clk 0:00:38.1]} 33. R1e6 {[%clk 0:00:04.6]}
33... f2+ {[%clk 0:00:30.1]} 34. Kh1 {[%clk 0:00:04.3]} 34... Qxg2+ {[%clk
0:00:27.8]} 0-1

[Event "Late-Titled-Tuesday-Blitz-January-30-2024"]
[Site "Chess.com"]
[Date "2024.01.30"]
[Round "8"]
[White "mbojan"]
[Black "yobdc"]
[Result "1-0"]
[WhiteElo "2853"]
[BlackElo "2577"]
[TimeControl "180+1"]
[EndTime "15:27:16 PST"]
[Termination "mbojan won on time"]

1. a3 {[%clk 0:02:25.3]} 1... g6 {[%clk 0:02:58.5]} 2. d4 {[%clk 0:02:23.3]}
2... Bg7 {[%clk 0:02:58.8]} 3. c4 {[%clk 0:02:23.7]} 3... Nf6 {[%clk 0:02:59.1]}
4. Nf3 {[%clk 0:02:24.2]} 4... O-O {[%clk 0:02:59.1]} 5. Nc3 {[%clk 0:02:24.8]}
5... d6 {[%clk 0:02:59.5]} 6. e4 {[%clk 0:02:25.2]} 6... Nbd7 {[%clk 0:02:57.9]}
7. Be2 {[%clk 0:02:25.4]} 7... e5 {[%clk 0:02:58.3]} 8. d5 {[%clk 0:02:25.6]}
8... Nc5 {[%clk 0:02:55.8]} 9. Qc2 {[%clk 0:02:25.6]} 9... a5 {[%clk 0:02:56.1]}
10. Be3 {[%clk 0:02:24.5]} 10... Ng4 {[%clk 0:02:47.2]} 11. Bg5 {[%clk
0:02:24.5]} 11... f6 {[%clk 0:02:45]} 12. Bh4 {[%clk 0:02:24]} 12... a4 {[%clk
0:02:42.7]} 13. Nd2 {[%clk 0:02:24.2]} 13... Nh6 {[%clk 0:02:41.2]} 14. f3
{[%clk 0:02:24.9]} 14... Bd7 {[%clk 0:02:39.8]} 15. Bf2 {[%clk 0:02:25]} 15...
b6 {[%clk 0:02:37.5]} 16. O-O-O {[%clk 0:02:25.2]} 16... f5 {[%clk 0:02:28.8]}
17. h4 {[%clk 0:02:18.7]} 17... fxe4 {[%clk 0:02:23.9]} 18. Ndxe4 {[%clk
0:02:18.6]} 18... Nb3+ {[%clk 0:02:21.1]} 19. Kb1 {[%clk 0:02:18.3]} 19... Nf5
{[%clk 0:02:21.3]} 20. h5 {[%clk 0:02:03.8]} 20... Nfd4 {[%clk 0:02:19.5]} 21.
Qd3 {[%clk 0:02:03.9]} 21... Nc5 {[%clk 0:02:01]} 22. Qd2 {[%clk 0:01:58.5]}
22... Bf5 {[%clk 0:01:58.4]} 23. hxg6 {[%clk 0:01:56.7]} 23... Bxg6 {[%clk
0:01:55.1]} 24. Bd3 {[%clk 0:01:56.5]} 24... Nxd3 {[%clk 0:01:41.1]} 25. Qxd3
{[%clk 0:01:57.4]} 25... Qd7 {[%clk 0:01:33.5]} 26. Bxd4 {[%clk 0:01:53.4]}
26... exd4 {[%clk 0:01:33.5]} 27. Ne2 {[%clk 0:01:54]} 27... b5 {[%clk
0:01:21.5]} 28. cxb5 {[%clk 0:01:45.9]} 28... Rab8 {[%clk 0:01:15.9]} 29. Nxd4
{[%clk 0:01:46]} 29... Rb6 {[%clk 0:01:16]} 30. Ne6 {[%clk 0:01:40.1]} 30...
Qxb5 {[%clk 0:00:28.5]} 31. Qxb5 {[%clk 0:01:29.6]} 31... Rxb5 {[%clk
0:00:29.4]} 32. Nxg7 {[%clk 0:01:29.7]} 32... Bxe4+ {[%clk 0:00:24]} 33. Kc1
{[%clk 0:01:04.5]} 33... Kxg7 {[%clk 0:00:19.7]} 34. fxe4 {[%clk 0:01:04.6]}
34... Rc5+ {[%clk 0:00:14.2]} 35. Kd2 {[%clk 0:01:04.7]} 35... Rf2+ {[%clk
0:00:13.6]} 36. Ke3 {[%clk 0:01:04.6]} 36... Rxb2 {[%clk 0:00:13.9]} 37. Rc1
{[%clk 0:01:03.9]} 37... Rb3+ {[%clk 0:00:13.9]} 38. Kf4 {[%clk 0:01:04.4]}
38... Rxa3 {[%clk 0:00:12.8]} 39. Rxc5 {[%clk 0:01:04.7]} 39... dxc5 {[%clk
0:00:13.7]} 40. Rc1 {[%clk 0:01:05.2]} 40... Rb3 {[%clk 0:00:04.7]} 41. Rxc5
{[%clk 0:01:05.4]} 41... a3 {[%clk 0:00:05.2]} 42. Rxc7+ {[%clk 0:01:05.7]}
42... Kg6 {[%clk 0:00:04.9]} 43. Ra7 {[%clk 0:01:04.8]} 43... Rd3 {[%clk
0:00:04.5]} 44. g4 {[%clk 0:01:04.2]} 44... h6 {[%clk 0:00:04.6]} 45. Ra6+
{[%clk 0:01:01.3]} 45... Kf7 {[%clk 0:00:04.7]} 46. Ke5 {[%clk 0:01:01.7]} 46...
Rd2 {[%clk 0:00:04.1]} 47. Ra7+ {[%clk 0:01:00.6]} 47... Ke8 {[%clk 0:00:04]}
48. Rxa3 {[%clk 0:01:00.7]} 48... Rg2 {[%clk 0:00:04.7]} 49. Ke6 {[%clk
0:01:00]} 49... Kd8 {[%clk 0:00:04.2]} 50. d6 {[%clk 0:01:00.2]} 1-0